bitfinex-derivatives/quotes_BNBF0:USTF0_20230831
["timestamp","ask_amount","ask_price","bid_price","bid_amount"]
[1693497909658,0.07263552,221.28,220.92,0.18769838]
[1693497909959,0.07263552,221.28,220.93,0.18769838]
[1693497910258,0.07263552,221.28,220.94,0.18769838]
[1693497910557,0.07263552,221.28,220.95,0.18769838]
[1693497910754,0.07263552,221.28,220.96,0.18769838]
[1693497910959,0.07263552,221.29,220.97,0.18769838]
[1693497911159,0.07263552,221.29,220.98,0.18769838]
[1693497911357,0.07263552,221.29,220.99,0.18769838]
[1693497911558,0.07263552,221.3,220.92,0.18769838]
[1693497911756,0.07263552,221.3,221.0,0.18769838]
[1693497911952,0.07263552,221.29,220.91,0.0738416]
[1693497912157,0.07263552,221.29,220.92,0.18766386]
[1693497913661,0.07263552,221.29,220.93,0.18766386]
[1693497913858,0.07263552,221.29,220.94,0.18766386]
[1693497914058,0.07263552,221.29,220.95,0.18766386]
[1693497914254,0.07263552,221.29,220.96,0.18766386]
[1693497914458,0.07263552,221.29,220.97,0.18766386]
[1693497914655,0.07263552,221.29,220.91,0.18766386]
[1693497914860,0.07263552,221.29,220.92,0.18766386]
[1693497915059,0.07263552,221.29,220.91,0.18766386]
[1693497915362,0.07263552,221.29,220.92,0.18766386]
[1693497915562,0.07263552,221.29,220.93,0.18766386]
[1693497915762,0.07263552,221.29,220.9,0.0738416]
[1693497915763,0.07263552,221.29,220.94,0.18766386]
[1693497915956,0.07263552,221.29,220.9,0.0738416]
[1693497915957,0.07263552,221.29,220.95,0.18766386]
[1693497916158,0.07263552,221.29,220.96,0.18766386]
[1693497916359,0.07263552,221.29,220.91,0.18766386]
[1693497916662,0.07263552,221.29,220.92,0.18766386]
[1693497916862,0.07263552,221.29,220.91,0.18766386]
[1693497917064,0.07263552,221.29,220.92,0.18766386]
[1693497917259,0.07263552,221.29,220.91,0.18766386]
[1693497917461,0.07263552,221.28,220.92,0.18766386]
[1693497917763,0.07263552,221.28,220.93,0.18766386]
[1693497917965,0.07263552,221.28,220.94,0.18766386]
[1693497918259,0.07263552,221.28,220.95,0.18766386]
[1693497918457,0.07263552,221.28,220.96,0.18766386]
[1693497918766,0.07263552,221.28,220.97,0.18766386]
[1693497918963,0.07263552,221.28,220.98,0.18766386]
[1693497919166,0.07263552,221.29,220.9,0.18766386]
[1693497919359,0.07263552,221.29,220.91,0.18766386]
[1693497920065,0.07263552,221.29,220.91,0.26150546]
[1693497920265,0.07263552,221.29,220.92,0.18766386]
[1693497923962,0.07263552,221.28,220.92,0.26150546]
[1693497924162,0.07263552,221.28,220.93,0.18766386]
[1693497924865,0.07263552,221.29,220.93,0.18766386]
[1693497925061,0.07263552,221.28,220.93,0.26150546]
[1693497925263,0.07263552,221.28,220.94,0.18766386]
[1693497926263,0.07263552,221.33,220.98,0.0738416]
[1693497926468,0.07263552,221.33,220.99,0.18766386]
[1693497928764,0.07263552,221.34,220.99,0.26150546]
[1693497928968,0.07263552,221.35,221.0,0.18766386]
[1693497929964,0.07263552,221.35,221.0,0.26150546]
[1693497930165,0.07263552,221.36,221.01,0.18766386]
[1693497930372,0.07263552,221.36,221.02,0.18766386]
[1693497930572,0.07263552,221.36,221.0,0.18766386]
[1693497930768,0.07263552,221.36,221.01,0.18766386]
[1693497930972,0.07263552,221.36,221.02,0.18766386]
[1693497931172,0.07263552,221.35,221.0,0.18766386]
[1693497931372,0.07263552,221.35,221.01,0.18766386]
[1693497931574,0.07263552,221.35,221.02,0.18766386]
[1693497931776,0.07263552,221.35,221.0,0.18766386]
[1693497931967,0.07263552,221.35,220.92,0.14768321]
[1693497931968,0.07263552,221.36,221.01,0.18766386]
[1693497932169,0.07263552,221.36,221.02,0.18766386]
[1693497932370,0.07263552,221.35,221.03,0.18766386]
[1693497932566,0.07263552,221.35,220.99,0.18766386]
[1693497932868,0.07263552,221.35,221.0,0.18766386]
[1693497933073,0.07263552,221.35,221.01,0.18766386]
[1693497933270,0.07263552,221.36,220.99,0.18766386]
[1693497933469,0.07263552,221.36,221.0,0.18766386]
[1693497933677,0.07263552,221.36,221.01,0.18766386]
[1693497933870,0.07263552,221.36,220.99,0.18766386]
[1693497934076,0.07263552,221.36,221.0,0.18766386]
[1693497934273,0.07263552,221.35,220.99,0.18766386]
[1693497934478,0.07263552,221.35,221.0,0.18766386]
[1693497934679,0.07263552,221.35,221.01,0.18766386]
[1693497934881,0.07263552,221.35,220.98,0.18766386]
[1693497935181,0.07263552,221.35,220.99,0.18766386]
[1693497935380,0.07263552,221.35,221.0,0.18766386]
[1693497935681,0.07263552,221.36,221.01,0.18766386]
[1693497935880,0.07263552,221.36,221.02,0.18766386]
[1693497936073,0.07263552,221.36,220.98,0.18766386]
[1693497936273,0.07263552,221.36,220.99,0.18766386]
[1693497936575,0.07263552,221.36,221.0,0.18766386]
[1693497936779,0.07263552,221.36,221.01,0.18766386]
[1693497936974,0.07263552,221.36,221.02,0.18766386]
[1693497937378,0.07263552,221.36,221.03,0.18766386]
[1693497937578,0.07263552,221.36,221.04,0.18766386]
[1693497937774,0.07263552,221.36,220.97,0.0738416]
[1693497937775,0.07263552,221.37,220.98,0.18766386]
[1693497943292,0.07263552,221.37,220.98,0.26150546]
[1693497943589,0.07263552,221.37,220.99,0.18766386]
[1693497944387,0.07263552,221.38,220.99,0.18766386]
[1693497944990,0.07263552,221.37,220.99,0.18766386]
[1693497948090,0.07263552,221.37,220.99,0.26150546]
[1693497948293,0.07263552,221.38,221.0,0.18766386]
[1693497948689,0.07263552,221.37,221.0,0.18766386]
[1693497948890,0.07263552,221.38,221.0,0.18766386]
[1693497949187,0.07263552,221.37,221.0,0.26150546]
[1693497949392,0.07263552,221.37,221.01,0.18766386]
[1693497949792,0.07263552,221.38,221.01,0.18766386]
[1693497950487,0.07263552,221.42,221.04,0.0738416]
[1693497950689,0.07263552,221.42,221.05,0.18766386]
[1693497951091,0.07263552,221.42,221.04,0.26150546]
[1693497951288,0.07263552,221.42,221.05,0.18766386]
[1693497951485,0.07263552,221.42,221.06,0.18766386]
[1693497951686,0.07263552,221.42,221.07,0.18766386]
[1693497951887,0.07263552,221.42,221.08,0.18766386]
[1693497952089,0.07263552,221.42,221.04,0.18766386]
[1693497952288,0.07263552,221.42,221.05,0.18766386]
[1693497952492,0.07263552,221.42,221.04,0.18766386]
[1693497952794,0.07263552,221.42,221.05,0.18766386]
[1693497952993,0.07263552,221.42,221.06,0.18766386]
[1693497953290,0.07263552,221.42,221.07,0.18766386]
[1693497953495,0.07263552,221.42,221.04,0.26150546]
[1693497953688,0.07263552,221.42,221.05,0.18766386]
[1693497955090,0.07263552,221.42,221.03,0.0738416]
[1693497955091,0.07263552,221.42,221.04,0.26150546]
[1693497955289,0.07263552,221.42,221.05,0.18766386]
[1693497955490,0.07263552,221.42,221.06,0.18766386]
[1693497955695,0.07263552,221.42,221.05,0.18766386]
[1693497955895,0.07263552,221.42,221.06,0.18766386]
[1693497956095,0.07263552,221.42,221.05,0.18766386]
[1693497956296,0.07263552,221.42,221.06,0.18766386]
[1693497956597,0.07263552,221.43,221.07,0.18766386]
[1693497956797,0.07263552,221.43,221.05,0.18766386]
[1693497957095,0.07263552,221.42,221.06,0.18766386]
[1693497957290,0.07263552,221.42,221.05,0.18766386]
[1693497957491,0.07263552,221.42,221.06,0.18766386]
[1693497957688,0.07263552,221.42,221.05,0.18766386]
[1693497957998,0.07263552,221.42,221.04,0.0738416]
[1693497957999,0.07263552,221.42,221.06,0.18766386]
[1693497958298,0.07263552,221.42,221.07,0.18766386]
[1693497958597,0.07263552,221.42,221.08,0.18766386]
[1693497958791,0.07263552,221.42,221.05,0.18766386]
[1693497958990,0.07263552,221.43,221.06,0.18766386]
[1693497959194,0.07263552,221.42,221.04,0.26150546]
[1693497959389,0.07263552,221.42,221.05,0.18766386]
[1693497959596,0.07263552,221.42,221.05,0.26150546]
[1693497959896,0.07263552,221.42,221.06,0.18766386]
[1693497960396,0.07263552,221.42,221.05,0.18766386]
[1693497960996,0.07263552,221.41,221.05,0.26150546]
[1693497961196,0.07263552,221.41,221.06,0.18766386]
[1693497961592,0.07263552,221.42,221.06,0.18766386]
[1693497962296,0.07263552,221.41,221.06,0.18766386]
[1693497962491,0.07263552,221.42,221.06,0.26150546]
[1693497962691,0.07263552,221.42,221.07,0.18766386]
[1693497963096,0.96847365,221.5,221.07,0.26150546]
[1693497963097,0.07263552,221.43,221.07,0.26150546]
[1693497963398,0.07263552,221.43,221.08,0.18766386]
[1693497963598,0.07263552,221.44,221.08,0.18766386]
[1693497963898,0.07263552,221.44,221.09,0.18766386]
[1693497964102,0.07263552,221.44,221.07,0.18766386]
[1693497964399,0.07263552,221.44,221.08,0.18766386]
[1693497964599,0.07263552,221.44,221.07,0.26150546]
[1693497964800,0.07263552,221.44,221.08,0.18766386]
[1693497964999,0.07263552,221.45,221.08,0.18766386]
[1693497965298,0.07263552,221.46,221.08,0.18766386]
[1693497965701,0.07263552,221.45,221.08,0.18766386]
[1693497966800,0.07263552,221.45,221.07,0.18766386]
[1693497967401,0.07263552,221.45,221.06,0.18766386]
[1693497967598,0.07263552,221.45,221.07,0.18766386]
[1693497967799,0.07263552,221.45,221.06,0.18766386]
[1693497971408,0.07263552,221.46,221.06,0.26150546]
[1693497971607,0.07263552,221.46,221.07,0.18766386]
[1693497973602,0.07263552,221.47,221.07,0.18766386]
[1693497975010,0.07263552,221.52,221.1,0.0738416]
[1693497975210,0.07263552,221.52,221.11,0.18766386]
[1693497975411,0.07263552,221.53,221.11,0.18766386]
[1693497975608,0.07263552,221.52,221.11,0.18766386]
[1693497975814,0.07263552,221.53,221.11,0.26150546]
[1693497976014,0.07263552,221.54,221.12,0.18766386]
[1693497976215,0.07263552,221.54,221.11,0.18766386]
[1693497976413,0.07263552,221.54,221.12,0.18766386]
[1693497976609,0.07263552,221.54,221.13,0.18766386]
[1693497976815,0.07263552,221.54,221.14,0.18766386]
[1693497977016,0.07263552,221.54,220.87,0.98455476]
[1693497977017,0.07263552,221.55,221.15,0.18766386]
[1693497977315,0.07263552,221.55,221.16,0.18766386]
[1693497977616,0.14527104,221.57,221.09,0.0738416]
[1693497977617,0.07263552,221.54,221.17,0.18766386]
[1693497977817,0.07263552,221.55,221.18,0.18766386]
[1693497978013,0.07263552,221.55,221.19,0.18766386]
[1693497978211,0.07263552,221.55,221.2,0.18766386]
[1693497978411,0.07263552,221.55,221.1,0.18766386]
[1693497979008,0.07263552,221.56,221.1,0.18766386]
[1693497982712,0.8299524,221.55,221.1,0.18766386]
[1693497982920,0.07263552,221.55,221.1,0.18766386]
[1693497984116,0.07263552,221.55,221.1,0.26150546]
[1693497984416,0.07263552,221.55,221.11,0.18766386]
[1693497985120,0.07263552,221.54,221.11,0.18766386]
[1693497986121,0.07263552,221.54,221.11,0.26150546]
[1693497986321,0.07263552,221.54,221.12,0.18766386]
[1693497986819,0.07263552,221.55,221.12,0.18766386]
[1693497987020,0.07263552,221.55,221.12,0.26150546]
[1693497987219,0.07263552,221.55,221.13,0.18766386]
[1693497989426,0.07263552,221.55,221.14,0.18766386]
[1693497989725,0.07263552,221.55,221.15,0.18766386]
[1693497989925,0.07263552,221.54,221.16,0.18766386]
[1693497990123,0.07263552,221.54,221.17,0.18766386]
[1693497990318,0.07263552,221.54,221.18,0.18766386]
[1693497990523,0.07263552,221.55,221.19,0.18766386]
[1693497990722,0.07263552,221.55,221.2,0.18766386]
[1693497990923,0.07263552,221.55,221.21,0.18766386]
[1693497991119,0.07263552,221.54,221.22,0.18766386]
[1693497991427,0.07263552,221.54,221.23,0.18766386]
[1693497991628,0.07263552,221.55,221.13,0.26150546]
[1693497991822,0.07263552,221.55,221.14,0.18766386]
[1693497992427,0.07263552,221.55,221.13,0.18766386]
[1693497992625,0.07263552,221.55,221.14,0.18766386]
[1693497992826,0.07263552,221.55,221.13,0.18766386]
[1693497993027,0.07263552,221.54,221.14,0.18766386]
[1693497995129,0.07263552,221.53,221.14,0.26150546]
[1693497995428,0.07263552,221.53,221.15,0.18766386]
[1693498000032,0.07263552,221.52,221.15,0.26150546]
[1693498000226,0.07263552,221.52,221.16,0.18766386]
[1693498003026,0.07263552,221.51,221.16,0.26150546]
[1693498003230,0.07263552,221.51,221.17,0.18766386]
[1693498004728,0.07263552,221.52,221.17,0.18766386]
[1693498004928,0.07263552,221.51,221.17,0.26150546]
[1693498005130,0.07263552,221.51,221.18,0.18766386]
[1693498005735,0.07263552,221.5,221.18,0.18766386]
[1693498005929,0.07263552,221.49,221.18,0.26150546]
[1693498006133,0.07263552,221.49,221.19,0.18766386]
[1693498006334,0.07263552,221.48,221.19,0.18766386]
[1693498006533,0.07263552,221.49,221.19,0.18766386]
[1693498006729,0.07263552,221.5,221.19,0.26150546]
[1693498006934,0.07263552,221.5,221.2,0.18766386]
[1693498007132,2.42118413,221.63,221.2,0.18766386]
[1693498007133,0.07263552,221.48,221.2,0.0738416]
[1693498007334,0.07263552,221.48,221.21,0.18766386]
[1693498007937,0.07263552,221.48,221.19,0.0738416]
[1693498007938,0.07263552,221.48,221.2,0.18766386]
[1693498008234,0.07263552,221.47,221.21,0.18766386]
[1693498008434,0.07263552,221.47,221.19,0.18766386]
[1693498008630,0.07263552,221.45,221.2,0.26150546]
[1693498008835,0.07263552,221.45,221.21,0.18766386]
[1693498009234,0.07263552,221.46,221.21,0.26150546]
[1693498009435,0.07263552,221.47,221.22,0.26150546]
[1693498009628,0.07263552,221.47,221.23,0.18766386]
[1693498010033,0.96847365,221.54,221.22,0.26150546]
[1693498010034,0.07263552,221.46,221.22,0.26150546]
[1693498010333,0.07263552,221.46,221.23,0.18766386]
[1693498011937,0.07263552,221.46,221.23,0.26150546]
[1693498012137,0.07263552,221.46,221.24,0.18766386]
[1693498013636,0.07263552,221.46,221.22,0.0738416]
[1693498013838,0.07263552,221.46,221.23,0.2606868]
[1693498014034,0.07263552,221.46,221.24,0.1868452]
[1693498015136,0.07263552,221.47,221.24,0.1868452]
[1693498015939,0.07263552,221.47,221.24,0.2606868]
[1693498016135,0.07263552,221.48,221.25,0.1868452]
[1693498020840,0.07263552,221.47,221.25,0.1868452]
[1693498021044,0.07263552,221.47,221.23,0.0738416]
[1693498021238,0.07263552,221.47,221.24,0.18685075]
[1693498023747,0.07263552,221.47,221.24,0.26069235]
[1693498023944,0.07263552,221.47,221.25,0.18685075]
[1693498024342,0.07263552,221.48,221.25,0.18685075]
[1693498028449,0.07321321,221.48,221.25,0.18685075]
[1693498030958,0.07321321,221.47,221.25,0.18685075]
[1693498031450,0.07321321,221.47,221.0,0.98711287]
[1693498031451,0.14642643,221.45,221.24,0.07403346]
[1693498031651,0.07321321,221.43,221.19,0.07403346]
[1693498031857,0.07321321,221.42,221.2,0.18703947]
[1693498032357,0.07321321,221.44,221.2,0.18703947]
[1693498032556,0.07321321,221.44,221.18,0.18703947]
[1693498032757,0.07321321,221.44,221.19,0.18702999]
[1693498032957,0.07321321,221.44,221.2,0.18702999]
[1693498033159,0.07321321,221.44,221.18,0.18702999]
[1693498033359,0.07321321,221.44,221.19,0.18703138]
[1693498033659,0.07321321,221.44,221.2,0.18703138]
[1693498033860,0.07321321,221.44,221.17,0.07403346]
[1693498034053,0.07321321,221.45,221.18,0.18703299]
[1693498034258,0.07321321,221.45,221.17,0.18703299]
[1693498034458,0.07321321,221.45,221.18,0.18703299]
[1693498034659,0.07321321,221.45,221.16,0.18703299]
[1693498034861,0.07321321,221.45,221.17,0.18703299]
[1693498035061,0.07321321,221.46,221.16,0.18703299]
[1693498036261,0.07321321,221.46,221.15,0.18703299]
[1693498036457,0.07321321,221.46,221.16,0.18703299]
[1693498036662,0.07321321,221.46,221.15,0.18703299]
[1693498037062,0.07321321,221.47,221.15,0.18703299]
[1693498038263,0.07321321,221.47,221.14,0.18703299]
[1693498038464,0.07321321,221.47,221.15,0.18703299]
[1693498038662,0.07321321,221.47,221.16,0.18703299]
[1693498038860,0.07321321,221.47,221.14,0.18703299]
[1693498039060,0.07321321,221.48,221.14,0.18703299]
[1693498041167,0.07321321,221.48,221.15,0.18703299]
[1693498041367,0.07321321,221.48,221.16,0.18703299]
[1693498041560,0.07321321,221.48,221.17,0.18703299]
[1693498041764,0.07321321,221.48,221.13,0.18703299]
[1693498041965,0.07321321,221.48,221.14,0.18703299]
[1693498042167,0.07321321,221.48,221.13,0.18703299]
[1693498042366,0.07321321,221.48,221.14,0.18703299]
[1693498042563,0.07321321,221.48,221.13,0.18703299]
[1693498042767,0.07321321,221.48,221.14,0.18703299]
[1693498042965,0.07321321,221.48,221.13,0.18703299]
[1693498043265,0.07321321,221.48,221.14,0.18703299]
[1693498043472,0.07321321,221.48,221.13,0.18703299]
[1693498043664,0.07321321,221.48,221.14,0.18703299]
[1693498043868,0.07321321,221.48,221.15,0.18703299]
[1693498044067,0.07321321,221.48,221.16,0.18703299]
[1693498044263,0.07321321,221.48,221.13,0.18703299]
[1693498044469,0.07321321,221.48,221.14,0.18703299]
[1693498044667,0.07321321,221.48,221.13,0.18703299]
[1693498044868,0.07321321,221.48,221.14,0.18703299]
[1693498045065,0.07321321,221.48,221.13,0.18703299]
[1693498045273,0.07321321,221.48,221.14,0.18703299]
[1693498045471,0.07321321,221.48,221.13,0.18703299]
[1693498045668,0.07321321,221.48,221.14,0.18703299]
[1693498045866,0.07321321,221.48,221.13,0.18703299]
[1693498046068,0.07321321,221.48,221.12,0.07403346]
[1693498046069,0.07321321,221.48,221.14,0.18703299]
[1693498046267,0.07321321,221.48,221.13,0.18703299]
[1693498046469,0.07321321,221.49,221.14,0.18703299]
[1693498046771,0.07321321,221.49,221.15,0.18703299]
[1693498046972,0.07321321,221.49,221.16,0.18703299]
[1693498047172,0.07321321,221.49,221.17,0.18703299]
[1693498047471,0.07321321,221.49,221.18,0.18703299]
[1693498047673,0.07321321,221.49,221.19,0.18703299]
[1693498047872,0.07321321,221.49,221.2,0.18703299]
[1693498048073,0.07321321,221.49,221.13,0.18703299]
[1693498048268,0.07321321,221.49,221.14,0.18703299]
[1693498048474,0.07321321,221.49,221.13,0.18703299]
[1693498048674,0.07321321,221.49,221.14,0.18703299]
[1693498048874,0.07321321,221.49,221.13,0.18703299]
[1693498049074,0.07321321,221.49,221.14,0.18703299]
[1693498049271,0.07321321,221.49,221.13,0.18703299]
[1693498049475,0.07321321,221.49,221.14,0.18703299]
[1693498049776,0.07321321,221.49,221.15,0.18703299]
[1693498049977,0.07321321,221.49,221.13,0.18703299]
[1693498050278,0.07321321,221.49,221.14,0.18703299]
[1693498050575,0.07321321,221.49,221.15,0.18703299]
[1693498050877,0.07321321,221.49,221.16,0.18703299]
[1693498051078,0.07321321,221.48,221.17,0.18703299]
[1693498051278,0.07321321,221.48,221.14,0.18703299]
[1693498051474,0.07321321,221.48,221.15,0.18703299]
[1693498051675,0.07321321,221.48,221.14,0.18703299]
[1693498051874,0.07321321,221.48,221.15,0.18703299]
[1693498052076,0.07321321,221.48,221.16,0.18703299]
[1693498052277,0.07321321,221.48,221.17,0.18703299]
[1693498052475,0.07321321,221.48,221.14,0.18703299]
[1693498052674,0.07321321,221.48,221.15,0.18703299]
[1693498052876,0.07321321,221.48,221.14,0.18703299]
[1693498053075,0.07321321,221.48,221.15,0.18703299]
[1693498053276,0.07321321,221.48,221.16,0.18703299]
[1693498053476,0.07321321,221.48,221.17,0.18703299]
[1693498053676,0.07321321,221.48,221.14,0.18703299]
[1693498053879,0.07321321,221.48,221.13,0.07403346]
[1693498053880,0.07321321,221.47,221.15,0.18703299]
[1693498054079,0.07321321,221.47,221.16,0.18703299]
[1693498054279,0.07321321,221.47,221.17,0.18703299]
[1693498054478,0.07321321,221.47,221.15,0.18703299]
[1693498054679,0.07321321,221.47,221.16,0.18703299]
[1693498054875,0.07321321,221.47,221.17,0.18703299]
[1693498055079,0.07321321,221.47,221.18,0.18703299]
[1693498055377,0.07321321,221.47,221.19,0.18703299]
[1693498055579,0.07321321,221.47,221.2,0.18703299]
[1693498055779,0.07321321,221.47,221.21,0.18703299]
[1693498055979,0.07321321,221.47,221.15,0.18703299]
[1693498056180,0.07321321,221.46,221.16,0.18702221]
[1693498056481,0.07321321,221.46,221.17,0.18702221]
[1693498056780,0.07321321,221.46,221.18,0.18702221]
[1693498056979,0.07321321,221.46,221.19,0.18702221]
[1693498057279,0.07321321,221.46,221.2,0.18702221]
[1693498057476,0.07321321,221.46,221.14,0.07403346]
[1693498057679,0.07321321,221.46,221.15,0.18703451]
[1693498060282,0.07321321,221.45,221.15,0.26106797]
[1693498060485,0.07321321,221.45,221.16,0.18703451]
[1693498060786,0.07321321,221.46,221.16,0.18703451]
[1693498061284,0.07321321,221.45,221.16,0.18703451]
[1693498062586,0.07321321,221.45,221.16,0.26106797]
[1693498062786,0.07321321,221.45,221.17,0.18703451]
[1693498062986,2.4404406,221.59,221.17,0.18703451]
[1693498062987,0.07321321,221.44,221.17,0.26106797]
[1693498063187,0.07321321,221.44,221.18,0.18703451]
[1693498063782,0.07321321,221.45,221.18,0.18703451]
[1693498064088,0.07321321,221.44,221.18,0.26106797]
[1693498064388,0.07321321,221.44,221.19,0.26106797]
[1693498064590,0.07321321,221.44,221.2,0.18703451]
[1693498066180,2.4404406,221.58,221.2,0.18703451]
[1693498066181,0.07321321,221.43,221.2,0.26106797]
[1693498066385,0.07321321,221.43,221.21,0.18703451]
[1693498067192,0.07321321,221.42,221.21,0.18703451]
[1693498067489,0.07321321,221.42,221.19,0.07403346]
[1693498067691,0.07321321,221.42,221.2,0.18702279]
[1693498067892,3.10791644,221.74,221.2,0.18702279]
[1693498068088,0.07320153,221.42,221.19,0.07406988]
[1693498068296,0.07320153,221.42,221.2,0.18702179]
[1693498068794,0.07320153,221.41,221.2,0.18702179]
[1693498069197,0.07320153,221.41,221.18,0.07406988]
[1693498069394,0.07320153,221.41,221.19,0.18703335]
[1693498069897,0.07320153,221.41,221.19,0.26110323]
[1693498070199,0.07320153,221.41,221.2,0.18703335]
[1693498071992,0.07320153,221.42,221.2,0.18703335]
[1693498072993,0.07320153,221.41,221.2,0.18703335]
[1693498073195,0.07320153,221.42,221.2,0.18703335]
[1693498077294,0.07320153,221.41,221.2,0.18703335]
[1693498077593,0.07320153,221.41,221.18,0.07406988]
[1693498077793,0.07320153,221.4,221.19,0.18703977]
[1693498078299,0.07320153,221.41,221.18,0.07406988]
[1693498078598,0.07320153,221.41,221.19,0.18703371]
[1693498080194,0.07320153,221.46,221.23,0.07406988]
[1693498080498,0.07320153,221.46,220.99,0.9875984]
[1693498080499,0.07320153,221.47,221.24,0.26110359]
[1693498080800,0.07320153,221.47,221.25,0.18703371]
[1693498081902,0.07320153,221.48,221.25,0.18703371]
[1693498082201,0.07320153,221.48,221.23,0.07406988]
[1693498082399,0.07320153,221.48,221.24,0.18683076]
[1693498082601,0.07320153,221.48,221.25,0.18683076]
[1693498082899,0.07320153,221.48,221.22,0.07406988]
[1693498083200,0.07320153,221.48,221.23,0.18683122]
[1693498083598,0.07320153,221.48,221.22,0.18683122]
[1693498083900,0.07320153,221.48,221.23,0.18683122]
[1693498084100,0.07320153,221.48,221.22,0.18683122]
[1693498084301,0.07320153,221.49,221.23,0.18683122]
[1693498084497,0.07320153,221.49,221.22,0.18683122]
[1693498085602,0.07320153,221.49,221.23,0.18683122]
[1693498085797,0.07320153,221.49,221.21,0.18683122]
[1693498085998,0.07320153,221.49,221.2,0.07406988]
[1693498085999,0.07320153,221.49,221.22,0.18683122]
[1693498086201,0.07320153,221.49,221.21,0.18683122]
[1693498088202,0.07320153,221.5,221.21,0.18683122]
[1693498088804,0.07320153,221.46,221.21,0.18683122]
[1693498088998,0.07320153,221.45,221.15,0.07406988]
[1693498089202,0.07320153,221.45,221.16,0.18701375]
[1693498091306,0.07320153,221.44,221.16,0.18701375]
[1693498091506,2.44005133,221.58,221.15,0.18701375]
[1693498091507,0.07320153,221.43,221.15,0.18701375]
[1693498091706,0.07320153,221.43,221.16,0.18701375]
[1693498092005,0.07320153,221.43,221.17,0.18701375]
[1693498092206,0.07320153,221.44,221.14,0.18701375]
[1693498092409,0.07006853,221.44,221.15,0.18701375]
[1693498092608,0.07006853,221.44,221.14,0.18701375]
[1693498092810,0.14640307,221.46,221.14,0.18701375]
[1693498096310,0.14640307,221.47,221.14,0.18701375]
[1693498097707,0.14640307,221.47,221.15,0.18701375]
[1693498097911,0.14640307,221.47,221.16,0.18701375]
[1693498098112,0.14640307,221.47,221.13,0.18701375]
[1693498098411,0.14640307,221.46,221.14,0.18701375]
[1693498098612,0.14640307,221.46,221.13,0.18701375]
[1693498098912,0.14640307,221.47,221.13,0.18701375]
[1693498103215,0.14640307,221.48,221.13,0.18701375]
[1693498103416,0.14640307,221.47,221.13,0.18701375]
[1693498105521,0.14640307,221.47,221.14,0.18701375]
[1693498105720,0.14640307,221.47,221.15,0.18701375]
[1693498106022,0.14640307,221.47,221.16,0.18701375]
[1693498106220,0.14640307,221.47,221.12,0.18701375]
[1693498106414,0.14640307,221.47,221.13,0.18701375]
[1693498106617,0.14640307,221.48,221.12,0.26108363]
[1693498106821,0.14640307,221.48,221.13,0.18701375]
[1693498108523,0.14640307,221.49,221.13,0.18701375]
[1693498112020,0.14640307,221.49,221.13,0.26108363]
[1693498112226,0.14640307,221.49,221.14,0.18701375]
[1693498115028,0.14640307,221.49,221.12,0.07406988]
[1693498115029,0.14640307,221.49,221.13,0.18701375]
[1693498115228,0.14640307,221.49,221.14,0.18701375]
[1693498115432,0.14640307,221.49,221.13,0.18701375]
[1693498115626,0.14640307,221.49,221.14,0.18701375]
[1693498115824,0.14640307,221.49,221.15,0.18701375]
[1693498116029,0.14640307,221.49,221.16,0.18701375]
[1693498116229,0.14640307,221.49,221.17,0.18701375]
[1693498116424,0.14640307,221.49,221.18,0.18701375]
[1693498116630,0.14640307,221.49,221.19,0.18701375]
[1693498116830,0.14640307,221.48,221.14,0.18701375]
[1693498117033,0.14640307,221.48,221.2,0.18701375]
[1693498117335,0.14640307,221.48,221.13,0.07406988]
[1693498117532,0.14640307,221.48,221.14,0.1855499]
[1693498118332,0.14640307,221.47,221.14,0.1855499]
[1693498119434,0.14640307,221.47,221.14,0.25961978]
[1693498119735,0.14640307,221.46,221.15,0.1855499]
[1693498119930,0.14640307,221.46,221.14,0.1855499]
[1693498120130,0.14640307,221.46,221.15,0.1855499]
[1693498120332,0.14640307,221.45,221.16,0.1855499]
[1693498120531,0.14640307,221.45,221.17,0.1855499]
[1693498120729,0.14640307,221.45,221.15,0.1855499]
[1693498120934,0.14640307,221.45,221.16,0.1855499]
[1693498121130,0.14640307,221.45,221.17,0.1855499]
[1693498121331,0.14640307,221.44,221.18,0.1855499]
[1693498121527,0.14640307,221.44,221.16,0.1855499]
[1693498121729,0.14640307,221.44,221.17,0.18556396]
[1693498122035,0.14640307,221.44,221.18,0.18556396]
[1693498122234,0.14640307,221.44,221.19,0.18556396]
[1693498122435,0.14640307,221.44,221.16,0.18556396]
[1693498122635,0.14640307,221.44,221.17,0.18556062]
[1693498122828,0.14640307,221.44,221.18,0.18556062]
[1693498123032,0.14640307,221.44,221.19,0.18556062]
[1693498123229,0.14640307,221.44,221.16,0.18556062]
[1693498123432,0.14640307,221.42,221.17,0.18555354]
[1693498123637,0.14640307,221.42,221.17,0.25962342]
[1693498123836,0.14640307,221.42,221.18,0.18555354]
[1693498124035,0.14640307,221.42,221.17,0.18555354]
[1693498124235,0.14640307,221.42,221.18,0.18555406]
[1693498125436,0.14640307,221.43,221.18,0.18555406]
[1693498129438,0.14640307,221.42,221.18,0.18555406]
[1693498132234,0.14640307,221.43,221.18,0.25962394]
[1693498132434,0.14640307,221.43,221.19,0.18555406]
[1693498132640,0.14640307,221.44,221.19,0.25962394]
[1693498132939,0.14640307,221.44,221.2,0.18555406]
[1693498133140,0.14640307,221.44,221.18,0.07406988]